[Event "44th Chess Olympiad Open 2022"]
[Site "Chennai"]
[Date "2022.08.07"]
[Round "9.50"]
[White "Dornbusch, Tatiana"]
[Black "Alhassadi, Yousef A."]
[Result "1/2-1/2"]
[WhiteElo "2247"]
[BlackElo "2068"]
[Annotator "RC"]
[PlyCount "78"]
[EventDate "2022.??.??"]
[TimeControl "60"]

1. d4 {[%emt 0:00:29]} d5 {[%emt 0:00:07]} 2. c4 {[%emt 0:00:56]} e6 {[%emt 0:
00:00]} 3. Nc3 {[%emt 0:00:25]} c5 {[%emt 0:00:06]} 4. cxd5 {[%emt 0:01:45]}
exd5 {[%emt 0:00:07]} 5. Nf3 {[%emt 0:00:36]} Nc6 {[%emt 0:00:07]} 6. g3 {
[%emt 0:01:21]} Nf6 {[%emt 0:00:29]} 7. Bg2 {[%emt 0:00:37]} cxd4 {[%emt 0:00:
00]} 8. Nxd4 {[%emt 0:01:10]} Bc5 {[%emt 0:00:10]} 9. Nxc6 {[%emt 0:07:49]}
bxc6 {[%emt 0:00:07]} 10. O-O {[%emt 0:00:15]} O-O {[%emt 0:00:15]} 11. Na4 {
[%emt 0:02:00]} Bb6 {[%emt 0:00:22]} 12. Qc2 {[%emt 0:16:24]} Ba6 {[%emt 0:00:
00]} 13. Nxb6 {[%emt 0:09:16]} Qxb6 {[%emt 0:00:09]} 14. Be3 {[%emt 0:04:27]}
d4 {[%emt 0:00:00]} 15. Bg5 {[%emt 0:03:25]} Nd5 {[%emt 0:00:00]} 16. Bf3 {
[%emt 0:13:18]} Rfe8 {[%emt 0:04:12]} 17. Rfe1 {[%emt 0:10:41]} Re5 {[%emt 0:
00:00]} 18. Bf4 {[%emt 0:01:46]} Nxf4 {[%emt 0:00:35]} 19. gxf4 {[%emt 0:00:02]
} Re6 {[%emt 0:00:08]} 20. f5 {[%emt 0:06:44]} Rh6 {[%emt 0:11:12]} 21. Kg2 {
[%emt 0:03:46]} Re8 {[%emt 0:06:37]} 22. Rac1 {[%emt 0:01:42]} Qc7 {[%emt 0:00:
00]} 23. h3 {[%emt 0:01:04]} Qf4 {[%emt 0:00:39]} 24. Rcd1 {[%emt 0:04:15]} Qe5
{[%emt 0:39:15]} 25. Bxc6 {[%emt 0:03:05]} Bxe2 {[%emt 0:10:37]} 26. Bxe8 {
[%emt 0:04:35]} Qd5+ {[%emt 0:02:15]} 27. Kh2 {[%emt 0:01:08]} Rxh3+ {[%emt 0:
00:00]} 28. Kxh3 {[%emt 0:00:03]} Qf3+ {[%emt 0:00:12]} 29. Kh2 {[%emt 0:00:07]
} Qxf2+ {[%emt 0:00:19]} 30. Kh3 {[%emt 0:00:15]} Qf3+ {[%emt 0:00:25]} 31. Kh2
{[%emt 0:00:14]} Qh5+ {[%emt 0:00:26]} 32. Kg3 {[%emt 0:01:54]} Qg5+ {[%emt 0:
00:00]} 33. Kf2 {[%emt 0:00:45]} Qe3+ {[%emt 0:00:11]} 34. Kg2 {[%emt 0:00:08]}
Qf3+ {[%emt 0:01:01]} 35. Kh2 {[%emt 0:00:16]} Qf4+ {[%emt 0:00:06]} 36. Kh3 {
[%emt 0:01:08]} Qh6+ {[%emt 0:01:02]} 37. Kg3 {[%emt 0:00:33]} Qg5+ {[%emt 0:
00:00]} 38. Kf2 {[%emt 0:00:25]} Qe3+ {[%emt 0:00:25]} 39. Kg2 {[%emt 0:00:04]}
Qf3+ {[%emt 0:00:34]} 1/2-1/2

[Event "44th Chess Olympiad Open 2022"]
[Site "Chennai"]
[Date "2022.08.07"]
[Round "9.50"]
[White "Attalib, Osama A."]
[Black "Bagheri, Amir"]
[Result "0-1"]
[WhiteElo "2033"]
[BlackElo "2375"]
[Annotator "RC"]
[PlyCount "92"]
[EventDate "2022.??.??"]
[TimeControl "60"]

1. e4 {[%emt 0:00:06]} c6 {[%emt 0:00:04]} 2. d4 {[%emt 0:00:23]} d5 {[%emt 0:
00:00]} 3. Nc3 {[%emt 0:00:27]} dxe4 {[%emt 0:02:11]} 4. Nxe4 {[%emt 0:00:11]}
Nf6 {[%emt 0:01:53]} 5. Nxf6+ {[%emt 0:01:11]} exf6 {[%emt 0:04:09]} 6. c3 {
[%emt 0:03:38]} Bd6 {[%emt 0:00:10]} 7. Bd3 {[%emt 0:00:16]} O-O {[%emt 0:00:
00]} 8. Be3 {[%emt 0:02:41]} Na6 {[%emt 0:04:03]} 9. Qc2 {[%emt 0:02:48]} h6 {
[%emt 0:02:33]} 10. Ne2 {[%emt 0:03:27]} Nc7 {[%emt 0:04:51]} 11. O-O-O {
[%emt 0:05:48]} Nd5 {[%emt 0:02:04]} 12. Bd2 {[%emt 0:00:44]} Re8 {[%emt 0:00:
00]} 13. h3 {[%emt 0:04:43]} b5 {[%emt 0:06:26]} 14. Kb1 {[%emt 0:03:02]} Be6 {
[%emt 0:02:47]} 15. Rhe1 {[%emt 0:06:27]} Rb8 {[%emt 0:02:38]} 16. Bf5 {
[%emt 0:05:56]} Qd7 {[%emt 0:06:08]} 17. Bxe6 {[%emt 0:01:16]} Rxe6 {[%emt 0:
00:00]} 18. Ng1 {[%emt 0:09:21]} Rxe1 {[%emt 0:05:16]} 19. Rxe1 {[%emt 0:00:18]
} a5 {[%emt 0:00:23]} 20. Nf3 {[%emt 0:02:10]} a4 {[%emt 0:01:26]} 21. a3 {
[%emt 0:01:31]} h5 {[%emt 0:10:57]} 22. Qe4 {[%emt 0:15:38]} f5 {[%emt 0:01:04]
} 23. Qd3 {[%emt 0:16:03]} g6 {[%emt 0:00:38]} 24. Ne5 {[%emt 0:00:51]} Bxe5 {
[%emt 0:02:56]} 25. Rxe5 {[%emt 0:00:22]} Nb6 {[%emt 0:18:19]} 26. Bg5 {
[%emt 0:03:23]} Re8 {[%emt 0:03:58]} 27. Qe2 {[%emt 0:04:32]} Re6 {[%emt 0:00:
00]} 28. Rxe6 {[%emt 0:02:00]} Qxe6 {[%emt 0:00:10]} 29. Qxe6 {[%emt 0:01:28]}
fxe6 {[%emt 0:00:04]} 30. b3 {[%emt 0:00:25]} Kf7 {[%emt 0:02:49]} 31. Bd8 {
[%emt 0:02:44]} Nd5 {[%emt 0:01:03]} 32. Kb2 {[%emt 0:00:29]} Nf4 {[%emt 0:00:
00]} 33. bxa4 {[%emt 0:01:03]} bxa4 {[%emt 0:00:03]} 34. Kc2 {[%emt 0:00:37]}
Nxg2 {[%emt 0:01:19]} 35. c4 {[%emt 0:01:00]} Nf4 {[%emt 0:01:53]} 36. h4 {
[%emt 0:00:43]} Ke8 {[%emt 0:01:50]} 37. Bf6 {[%emt 0:00:34]} Kf7 {[%emt 0:00:
00]} 38. Bd8 {[%emt 0:00:17]} Nh3 {[%emt 0:00:20]} 39. f3 {[%emt 0:00:40]} Ng1
{[%emt 0:00:11]} 40. f4 {[%emt 0:00:22]} Ne2 {[%emt 0:00:46]} 41. Kd3 {[%emt 0:
00:00]} Nxf4+ {[%emt 0:00:20]} 42. Ke3 {[%emt 0:00:39]} Nh3 {[%emt 0:06:18]}
43. Kf3 {[%emt 0:03:08]} g5 {[%emt 0:03:40]} 44. hxg5 {[%emt 0:02:00]} Kg6 {
[%emt 0:00:22]} 45. Kg3 {[%emt 0:00:50]} Nxg5 {[%emt 0:00:06]} 46. Kf4 {
[%emt 0:00:21]} e5+ {[%emt 0:01:05]} 0-1

[Event "44th Chess Olympiad Open 2022"]
[Site "Chennai"]
[Date "2022.08.07"]
[Round "9.50"]
[White "Verdier, Patrice"]
[Black "Naser Eldean, Ahmed"]
[Result "1/2-1/2"]
[WhiteElo "2017"]
[BlackElo "1941"]
[Annotator "NA"]
[PlyCount "112"]
[EventDate "2022.??.??"]
[TimeControl "60"]

1. d4 {[%emt 0:00:07]} Nf6 {[%emt 0:00:09]} 2. c4 {[%emt 0:00:10]} g6 {[%emt 0:
00:00]} 3. Nc3 {[%emt 0:00:13]} Bg7 {[%emt 0:00:07]} 4. e4 {[%emt 0:00:09]} d6
{[%emt 0:00:07]} 5. f4 {[%emt 0:00:42]} O-O {[%emt 0:00:11]} 6. Nf3 {[%emt 0:
00:00]} c5 {[%emt 0:00:11]} 7. d5 {[%emt 0:00:18]} b5 {[%emt 0:06:09]} 8. e5 {
[%emt 0:10:16]} dxe5 {[%emt 0:01:37]} 9. fxe5 {[%emt 0:00:09]} Ng4 {[%emt 0:00:
00]} 10. Nxb5 {[%emt 0:00:56]} a6 {[%emt 0:02:14]} 11. Nc3 {[%emt 0:00:29]}
Nxe5 {[%emt 0:00:22]} 12. Be2 {[%emt 0:06:28]} Nbd7 {[%emt 0:08:40]} 13. O-O {
[%emt 0:05:51]} Rb8 {[%emt 0:03:47]} 14. Qc2 {[%emt 0:06:00]} Nxf3+ {[%emt 0:
00:00]} 15. Bxf3 {[%emt 0:05:09]} Ne5 {[%emt 0:02:18]} 16. Bf4 {[%emt 0:07:46]}
Nxf3+ {[%emt 0:00:37]} 17. Rxf3 {[%emt 0:01:08]} Bf5 {[%emt 0:00:22]} 18. Qd2 {
[%emt 0:01:58]} e5 {[%emt 0:12:56]} 19. Be3 {[%emt 0:05:06]} Qc8 {[%emt 0:00:
00]} 20. b3 {[%emt 0:11:35]} e4 {[%emt 0:00:55]} 21. Rff1 {[%emt 0:01:26]} Be5
{[%emt 0:01:52]} 22. Rae1 {[%emt 0:05:41]} Re8 {[%emt 0:04:13]} 23. Na4 {
[%emt 0:03:07]} Bd6 {[%emt 0:06:01]} 24. Qf2 {[%emt 0:00:45]} Qc7 {[%emt 0:00:
00]} 25. Bf4 {[%emt 0:05:17]} Rbc8 {[%emt 0:00:40]} 26. h3 {[%emt 0:07:16]} Bd7
{[%emt 0:00:31]} 27. Bxd6 {[%emt 0:00:54]} Qxd6 {[%emt 0:00:19]} 28. Qxf7+ {
[%emt 0:00:08]} Kh8 {[%emt 0:00:16]} 29. Qf6+ {[%emt 0:03:02]} Qxf6 {[%emt 0:
00:00]} 30. Rxf6 {[%emt 0:00:05]} Bxa4 {[%emt 0:02:04]} 31. bxa4 {[%emt 0:00:
00]} Rb8 {[%emt 0:00:06]} 32. Rxa6 {[%emt 0:02:15]} Rb4 {[%emt 0:00:22]} 33.
Re6 {[%emt 0:00:26]} Rxe6 {[%emt 0:05:21]} 34. dxe6 {[%emt 0:00:05]} Kg7 {
[%emt 0:00:03]} 35. Rf1 {[%emt 0:07:21]} Rb6 {[%emt 0:09:02]} 36. Rf7+ {
[%emt 0:00:21]} Kg8 {[%emt 0:00:06]} 37. Rc7 {[%emt 0:00:35]} Rxe6 {[%emt 0:00:
00]} 38. Rxc5 {[%emt 0:00:25]} e3 {[%emt 0:00:49]} 39. Kf1 {[%emt 0:00:35]}
Rf6+ {[%emt 0:00:29]} 40. Ke2 {[%emt 0:01:12]} Rf2+ {[%emt 0:00:29]} 41. Kxe3 {
[%emt 0:30:06]} Rxg2 {[%emt 0:30:15]} 42. Kf3 {[%emt 0:00:00]} Rxa2 {[%emt 0:
00:00]} 43. a5 {[%emt 0:00:00]} Kf7 {[%emt 0:00:00]} 44. Rc7+ {[%emt 0:00:00]}
Ke6 {[%emt 0:00:00]} 45. Rxh7 {[%emt 0:00:00]} Rxa5 {[%emt 0:00:00]} 46. Ke4 {
[%emt 0:00:00]} Kd6 {[%emt 0:00:00]} 47. h4 {[%emt 0:00:00]} Re5+ {[%emt 0:00:
00]} 48. Kd4 {[%emt 0:00:00]} Rf5 {[%emt 0:00:00]} 49. Rh6 {[%emt 0:00:00]}
Rf4+ {[%emt 0:00:00]} 50. Kd3 {[%emt 0:00:00]} Kc5 {[%emt 0:00:00]} 51. Rxg6 {
[%emt 0:00:00]} Rxh4 {[%emt 0:00:00]} 52. Rg5+ {[%emt 0:00:00]} Kc6 {[%emt 0:
00:00]} 53. Rd5 {[%emt 0:00:00]} Rh1 {[%emt 0:00:00]} 54. Kc2 {[%emt 0:00:00]}
Rh3 {[%emt 0:00:00]} 55. Rd3 {[%emt 0:00:00]} Rxd3 {[%emt 0:00:00]} 56. Kxd3 {
[%emt 0:00:00]} Kc5 {[%emt 0:00:00]} 1/2-1/2

[Event "44th Chess Olympiad Open 2022"]
[Site "Chennai"]
[Date "2022.08.07"]
[Round "9.50"]
[White "Abugenda, Nagi"]
[Black "Ribbegren, Karl Johan"]
[Result "1/2-1/2"]
[WhiteElo "1991"]
[BlackElo "2198"]
[Annotator "RC"]
[PlyCount "68"]
[EventDate "2022.??.??"]
[TimeControl "60"]

1. e4 {[%emt 0:00:05]} Nf6 {[%emt 0:00:04]} 2. Nc3 {[%emt 0:00:22]} d5 {
[%emt 0:00:18]} 3. exd5 {[%emt 0:00:44]} Nxd5 {[%emt 0:00:30]} 4. Nxd5 {
[%emt 0:00:14]} Qxd5 {[%emt 0:00:11]} 5. Nf3 {[%emt 0:03:54]} Bg4 {[%emt 0:00:
00]} 6. Be2 {[%emt 0:00:28]} e5 {[%emt 0:01:29]} 7. h3 {[%emt 0:02:00]} Bh5 {
[%emt 0:01:48]} 8. O-O {[%emt 0:00:57]} Nc6 {[%emt 0:02:04]} 9. c4 {[%emt 0:00:
00]} Qe6 {[%emt 0:06:42]} 10. Re1 {[%emt 0:07:15]} O-O-O {[%emt 0:11:05]} 11.
Ng5 {[%emt 0:06:52]} Qe7 {[%emt 0:05:50]} 12. Bxh5 {[%emt 0:05:00]} Qxg5 {
[%emt 0:00:51]} 13. d4 {[%emt 0:00:20]} Qe7 {[%emt 0:03:47]} 14. d5 {[%emt 0:
00:00]} g6 {[%emt 0:14:37]} 15. Qa4 {[%emt 0:11:32]} Qb4 {[%emt 0:02:09]} 16.
Qxb4 {[%emt 0:10:05]} Bxb4 {[%emt 0:04:58]} 17. Bg4+ {[%emt 0:07:17]} f5 {
[%emt 0:00:42]} 18. Rf1 {[%emt 0:00:11]} Nd4 {[%emt 0:15:45]} 19. Bd1 {[%emt 0:
00:00]} Be7 {[%emt 0:01:21]} 20. Be3 {[%emt 0:02:24]} c5 {[%emt 0:00:45]} 21.
a3 {[%emt 0:03:34]} Kc7 {[%emt 0:04:27]} 22. Re1 {[%emt 0:03:42]} Bd6 {[%emt 0:
00:00]} 23. b4 {[%emt 0:01:44]} b6 {[%emt 0:01:35]} 24. Rb1 {[%emt 0:04:50]}
Rb8 {[%emt 0:02:38]} 25. Ba4 {[%emt 0:01:42]} a5 {[%emt 0:00:41]} 26. bxa5 {
[%emt 0:02:48]} bxa5 {[%emt 0:00:11]} 27. Bd2 {[%emt 0:00:26]} Rxb1 {[%emt 0:
00:00]} 28. Rxb1 {[%emt 0:00:36]} Ra8 {[%emt 0:00:40]} 29. Kf1 {[%emt 0:01:41]}
e4 {[%emt 0:01:07]} 30. Bc3 {[%emt 0:04:06]} Be5 {[%emt 0:02:46]} 31. Rd1 {
[%emt 0:02:54]} Kd6 {[%emt 0:01:16]} 32. Rb1 {[%emt 0:00:49]} Kc7 {[%emt 0:00:
00]} 33. Rd1 {[%emt 0:00:04]} Kd6 {[%emt 0:02:10]} 34. Rb1 {[%emt 0:00:15]} Kc7
{[%emt 0:00:33]} 1/2-1/2

[Event "44th Chess Olympiad Open 2022"]
[Site "Chennai"]
[Date "2022.08.07"]
[Round "9.51"]
[White "Wanyama, Harold"]
[Black "Mirzaad, S.wahabuddin"]
[Result "1-0"]
[WhiteElo "2242"]
[BlackElo "1999"]
[Annotator "NA RC"]
[PlyCount "37"]
[EventDate "2022.??.??"]
[TimeControl "60"]

1. d4 {[%emt 0:00:06]} d5 {[%emt 0:00:12]} 2. c4 {[%emt 0:00:13]} c6 {[%emt 0:
00:00]} 3. Nc3 {[%emt 0:01:13]} Nf6 {[%emt 0:00:52]} 4. Nf3 {[%emt 0:00:21]} e6
{[%emt 0:00:39]} 5. e3 {[%emt 0:00:39]} Nbd7 {[%emt 0:00:25]} 6. Qc2 {[%emt 0:
00:00]} b6 {[%emt 0:01:17]} 7. cxd5 {[%emt 0:01:16]} exd5 {[%emt 0:01:15]} 8.
Bd3 {[%emt 0:00:15]} Be7 {[%emt 0:02:06]} 9. O-O {[%emt 0:01:28]} O-O {[%emt 0:
00:00]} 10. Ne5 {[%emt 0:02:56]} Bb7 {[%emt 0:00:45]} 11. f4 {[%emt 0:01:13]}
c5 {[%emt 0:07:04]} 12. Bd2 {[%emt 0:00:30]} Rc8 {[%emt 0:00:44]} 13. Bf5 {
[%emt 0:00:10]} g6 {[%emt 0:04:32]} 14. Bh3 {[%emt 0:01:05]} Bd6 {[%emt 0:00:
00]} 15. Qa4 {[%emt 0:02:39]} Bxe5 {[%emt 0:08:22]} 16. dxe5 {[%emt 0:03:27]}
Bc6 {[%emt 0:00:35]} 17. Qd1 {[%emt 0:00:22]} Ne8 {[%emt 0:08:29]} 18. e6 {
[%emt 0:00:24]} Ndf6 {[%emt 0:00:24]} 19. e7 {[%emt 0:00:30]} 1-0

[Event "44th Chess Olympiad Open 2022"]
[Site "Chennai"]
[Date "2022.08.07"]
[Round "9.51"]
[White "Nsubuga, Haruna"]
[Black "Sakhawaty, Sepehr"]
[Result "1-0"]
[WhiteElo "2160"]
[BlackElo "1809"]
[Annotator "ChessBase"]
[PlyCount "103"]
[EventDate "2022.??.??"]
[TimeControl "60"]

1. e4 {[%emt 0:00:01]} c5 {[%emt 0:00:09]} 2. Nf3 {[%emt 0:00:05]} d6 {[%emt 0:
00:00]} 3. d4 {[%emt 0:00:05]} cxd4 {[%emt 0:00:05]} 4. Nxd4 {[%emt 0:00:04]}
Nf6 {[%emt 0:00:05]} 5. Nc3 {[%emt 0:00:04]} a6 {[%emt 0:00:16]} 6. Be2 {
[%emt 0:00:46]} e5 {[%emt 0:00:21]} 7. Nb3 {[%emt 0:00:35]} Be7 {[%emt 0:01:17]
} 8. Bg5 {[%emt 0:00:28]} Be6 {[%emt 0:01:29]} 9. Bxf6 {[%emt 0:00:20]} Bxf6 {
[%emt 0:00:05]} 10. Nd5 {[%emt 0:00:11]} Bg5 {[%emt 0:05:03]} 11. O-O {[%emt 0:
00:00]} O-O {[%emt 0:02:12]} 12. Bg4 {[%emt 0:00:53]} Nc6 {[%emt 0:04:33]} 13.
Re1 {[%emt 0:03:17]} Bxd5 {[%emt 0:11:11]} 14. Qxd5 {[%emt 0:00:08]} Qc7 {
[%emt 0:00:14]} 15. c3 {[%emt 0:01:29]} b5 {[%emt 0:06:19]} 16. Red1 {[%emt 0:
00:00]} Rfd8 {[%emt 0:03:53]} 17. Bh5 {[%emt 0:01:17]} g6 {[%emt 0:01:28]} 18.
Bg4 {[%emt 0:01:56]} Ne7 {[%emt 0:02:12]} 19. Qd3 {[%emt 0:00:19]} d5 {[%emt 0:
00:00]} 20. Bf3 {[%emt 0:01:18]} f5 {[%emt 0:03:59]} 21. exd5 {[%emt 0:00:20]}
Rd6 {[%emt 0:00:05]} 22. Qc2 {[%emt 0:06:20]} Rad8 {[%emt 0:03:35]} 23. a4 {
[%emt 0:00:34]} e4 {[%emt 0:10:41]} 24. Be2 {[%emt 0:00:04]} Nxd5 {[%emt 0:00:
00]} 25. Nd4 {[%emt 0:03:30]} e3 {[%emt 0:05:09]} 26. axb5 {[%emt 0:07:52]}
exf2+ {[%emt 0:02:11]} 27. Kh1 {[%emt 0:00:04]} Ne3 {[%emt 0:01:30]} 28. Qb3+ {
[%emt 0:00:11]} Kh8 {[%emt 0:00:38]} 29. Rdb1 {[%emt 0:02:16]} axb5 {[%emt 0:
00:00]} 30. Qxb5 {[%emt 0:00:25]} f1=Q+ {[%emt 0:03:16]} 31. Bxf1 {[%emt 0:00:
00]} Rxd4 {[%emt 0:00:05]} 32. cxd4 {[%emt 0:00:18]} Ng4 {[%emt 0:00:23]} 33.
g3 {[%emt 0:00:30]} Rxd4 {[%emt 0:05:01]} 34. Bg2 {[%emt 0:02:08]} Rd2 {
[%emt 0:03:02]} 35. Re1 {[%emt 0:14:39]} Kg7 {[%emt 0:05:08]} 36. Re2 {[%emt 0:
00:00]} Nf2+ {[%emt 0:03:20]} 37. Kg1 {[%emt 0:00:30]} Rxe2 {[%emt 0:00:41]}
38. Qxe2 {[%emt 0:00:25]} Qc5 {[%emt 0:00:30]} 39. Bf3 {[%emt 0:01:57]} Ng4+ {
[%emt 0:01:01]} 40. Kh1 {[%emt 0:00:35]} Ne5 {[%emt 0:01:05]} 41. Bg2 {[%emt 0:
00:00]} Ng4 {[%emt 0:06:31]} 42. Bf3 {[%emt 0:00:00]} Ne5 {[%emt 0:01:12]} 43.
Rd1 {[%emt 0:00:00]} f4 {[%emt 0:03:35]} 44. Kg2 {[%emt 0:00:00]} Nc4 {[%emt 0:
00:00]} 45. Rd7+ {[%emt 0:00:00]} Kh6 {[%emt 0:00:21]} 46. h4 {[%emt 0:00:00]}
Bf6 {[%emt 0:02:09]} 47. Qe4 {[%emt 0:00:00]} Ne3+ {[%emt 0:03:15]} 48. Kh3 {
[%emt 0:00:00]} Qf5+ {[%emt 0:00:30]} 49. Qxf5 {[%emt 0:00:00]} Nxf5 {[%emt 0:
00:00]} 50. Rf7 {[%emt 0:00:00]} Bd8 {[%emt 0:01:22]} 51. gxf4 {[%emt 0:00:00]}
Bxh4 {[%emt 0:01:32]} 52. Rxf5 {[%emt 0:00:16]} 1-0

[Event "44th Chess Olympiad Open 2022"]
[Site "Chennai"]
[Date "2022.08.07"]
[Round "9.51"]
[White "Amini, Habibullah"]
[Black "Kawuma, Patrick"]
[Result "1/2-1/2"]
[WhiteElo "2035"]
[BlackElo "2270"]
[Annotator "RC"]
[PlyCount "88"]
[EventDate "2022.??.??"]
[TimeControl "60"]

1. d4 {[%emt 0:00:02]} Nf6 {[%emt 0:00:05]} 2. Bf4 {[%emt 0:00:10]} g6 {
[%emt 0:01:43]} 3. Nc3 {[%emt 0:00:10]} d5 {[%emt 0:00:01]} 4. e3 {[%emt 0:00:
00]} Bg7 {[%emt 0:02:10]} 5. h4 {[%emt 0:00:15]} a6 {[%emt 0:04:21]} 6. Be2 {
[%emt 0:02:02]} h6 {[%emt 0:01:45]} 7. Nf3 {[%emt 0:00:34]} Nbd7 {[%emt 0:00:
00]} 8. Ne5 {[%emt 0:01:23]} Nf8 {[%emt 0:06:28]} 9. Nd3 {[%emt 0:02:59]} b6 {
[%emt 0:03:50]} 10. Bf3 {[%emt 0:07:45]} Bb7 {[%emt 0:00:17]} 11. Be5 {[%emt 0:
00:00]} N8d7 {[%emt 0:21:02]} 12. Bf4 {[%emt 0:19:07]} c5 {[%emt 0:07:09]} 13.
Ne2 {[%emt 0:06:23]} Ne4 {[%emt 0:10:48]} 14. c3 {[%emt 0:01:01]} Qc8 {[%emt 0:
00:00]} 15. Ne5 {[%emt 0:19:01]} Nxe5 {[%emt 0:04:01]} 16. dxe5 {[%emt 0:00:19]
} Qe6 {[%emt 0:01:28]} 17. Qb3 {[%emt 0:12:02]} c4 {[%emt 0:02:22]} 18. Qa4+ {
[%emt 0:00:21]} b5 {[%emt 0:02:02]} 19. Qa3 {[%emt 0:03:09]} Bxe5 {[%emt 0:00:
00]} 20. Bxe4 {[%emt 0:00:53]} dxe4 {[%emt 0:03:54]} 21. Bxe5 {[%emt 0:00:15]}
Qxe5 {[%emt 0:00:08]} 22. Rd1 {[%emt 0:00:40]} Qc7 {[%emt 0:01:39]} 23. b3 {
[%emt 0:00:54]} cxb3 {[%emt 0:02:07]} 24. axb3 {[%emt 0:00:10]} O-O {[%emt 0:
00:00]} 25. Rd4 {[%emt 0:01:30]} Rfd8 {[%emt 0:08:41]} 26. h5 {[%emt 0:01:09]}
g5 {[%emt 0:00:56]} 27. O-O {[%emt 0:00:12]} e5 {[%emt 0:04:53]} 28. Rxd8+ {
[%emt 0:01:18]} Rxd8 {[%emt 0:00:11]} 29. Ng3 {[%emt 0:00:16]} Qd6 {[%emt 0:00:
00]} 30. Qa5 {[%emt 0:00:26]} Re8 {[%emt 0:00:56]} 31. c4 {[%emt 0:00:22]} Qe6
{[%emt 0:01:38]} 32. Rd1 {[%emt 0:01:38]} bxc4 {[%emt 0:01:07]} 33. bxc4 {
[%emt 0:00:22]} Qxc4 {[%emt 0:01:33]} 34. Rd6 {[%emt 0:01:30]} Bc8 {[%emt 0:00:
00]} 35. Rxh6 {[%emt 0:01:27]} Qb5 {[%emt 0:00:30]} 36. Qd2 {[%emt 0:02:06]}
Be6 {[%emt 0:00:20]} 37. Rxe6 {[%emt 0:03:36]} fxe6 {[%emt 0:00:36]} 38. Qc2 {
[%emt 0:00:12]} Qd3 {[%emt 0:00:30]} 39. Qc7 {[%emt 0:00:27]} Rf8 {[%emt 0:00:
00]} 40. Qe7 {[%emt 0:03:00]} Qd1+ {[%emt 0:00:29]} 41. Kh2 {[%emt 0:34:30]}
Qg4 {[%emt 0:02:31]} 42. Kg1 {[%emt 0:00:00]} Qd1+ {[%emt 0:03:39]} 43. Kh2 {
[%emt 0:00:00]} Qg4 {[%emt 0:00:09]} 44. Kg1 {[%emt 0:00:00]} Qd1+ {[%emt 0:00:
00]} 1/2-1/2

[Event "44th Chess Olympiad Open 2022"]
[Site "Chennai"]
[Date "2022.08.07"]
[Round "9.51"]
[White "Sulaiman, Ahmad Ashrafi"]
[Black "Egesa emmanuel"]
[Result "1/2-1/2"]
[WhiteElo "1953"]
[BlackElo "2152"]
[Annotator "ChessBase"]
[PlyCount "84"]
[EventDate "2022.??.??"]
[TimeControl "60"]

1. d4 {[%emt 0:00:05]} Nf6 {[%emt 0:00:44]} 2. Bf4 {[%emt 0:00:08]} g6 {
[%emt 0:03:53]} 3. Nc3 {[%emt 0:00:23]} d5 {[%emt 0:00:55]} 4. Qd2 {[%emt 0:00:
00]} h6 {[%emt 0:11:30]} 5. h4 {[%emt 0:00:23]} a6 {[%emt 0:05:51]} 6. e3 {
[%emt 0:01:38]} Nc6 {[%emt 0:06:50]} 7. Nf3 {[%emt 0:00:37]} Bg7 {[%emt 0:00:
00]} 8. Ne5 {[%emt 0:01:41]} Bd7 {[%emt 0:02:40]} 9. Be2 {[%emt 0:00:57]} e6 {
[%emt 0:01:17]} 10. g4 {[%emt 0:02:08]} Qe7 {[%emt 0:03:48]} 11. O-O-O {
[%emt 0:01:08]} O-O-O {[%emt 0:00:28]} 12. Bg3 {[%emt 0:06:51]} Ne4 {[%emt 0:
00:00]} 13. Nxc6 {[%emt 0:00:44]} Bxc6 {[%emt 0:00:13]} 14. Nxe4 {[%emt 0:00:
00]} dxe4 {[%emt 0:00:04]} 15. Qc3 {[%emt 0:00:44]} Qd7 {[%emt 0:03:03]} 16.
Qa5 {[%emt 0:07:03]} Bf8 {[%emt 0:09:00]} 17. Be5 {[%emt 0:02:12]} Rg8 {
[%emt 0:00:17]} 18. g5 {[%emt 0:00:57]} h5 {[%emt 0:01:36]} 19. Kb1 {[%emt 0:
00:00]} Bd6 {[%emt 0:00:41]} 20. c4 {[%emt 0:00:30]} Bxe5 {[%emt 0:00:30]} 21.
dxe5 {[%emt 0:00:30]} Qe7 {[%emt 0:00:30]} 22. b4 {[%emt 0:06:10]} Rxd1+ {
[%emt 0:06:38]} 23. Rxd1 {[%emt 0:00:30]} Rd8 {[%emt 0:00:30]} 24. Rxd8+ {
[%emt 0:00:30]} Kxd8 {[%emt 0:00:30]} 25. Kc2 {[%emt 0:06:33]} b6 {[%emt 0:00:
00]} 26. Qa3 {[%emt 0:00:11]} a5 {[%emt 0:00:43]} 27. Kc3 {[%emt 0:01:42]}
axb4+ {[%emt 0:07:18]} 28. Qxb4 {[%emt 0:00:10]} Qc5 {[%emt 0:00:33]} 29. Qxc5
{[%emt 0:01:31]} bxc5 {[%emt 0:00:02]} 30. Bd1 {[%emt 0:00:19]} Kc8 {[%emt 0:
00:00]} 31. Bc2 {[%emt 0:01:53]} Kb7 {[%emt 0:00:08]} 32. a3 {[%emt 0:06:31]}
Kb6 {[%emt 0:00:03]} 33. Kd2 {[%emt 0:02:59]} Ka5 {[%emt 0:04:49]} 34. Ke2 {
[%emt 0:04:34]} Bb7 {[%emt 0:01:06]} 35. Kf1 {[%emt 0:06:14]} Bc6 {[%emt 0:00:
00]} 36. Kg2 {[%emt 0:10:18]} Bb7 {[%emt 0:00:40]} 37. Kg3 {[%emt 0:01:34]} Bc6
{[%emt 0:00:07]} 38. Kf4 {[%emt 0:00:51]} Bb7 {[%emt 0:00:08]} 39. Bb3 {
[%emt 0:03:19]} Bc6 {[%emt 0:00:36]} 40. Bd1 {[%emt 0:00:43]} Bb7 {[%emt 0:00:
00]} 41. Bc2 {[%emt 0:38:25]} Bc6 {[%emt 0:30:03]} 42. Kg3 {[%emt 0:04:43]} Bb7
{[%emt 0:02:25]} 1/2-1/2

[Event "44th Chess Olympiad Open 2022"]
[Site "Chennai"]
[Date "2022.08.07"]
[Round "9.52"]
[White "Gong, Daniel Hanwen"]
[Black "Pereira, Sergio Murilo de Ar"]
[Result "1-0"]
[WhiteElo "2296"]
[BlackElo "2093"]
[Annotator "NA RC"]
[PlyCount "29"]
[EventDate "2022.??.??"]
[TimeControl "60"]

1. d4 {[%emt 0:00:10]} d5 {[%emt 0:00:13]} 2. Bf4 {[%emt 0:00:07]} Nf6 {
[%emt 0:00:13]} 3. e3 {[%emt 0:00:08]} c5 {[%emt 0:00:19]} 4. dxc5 {[%emt 0:00:
00]} e6 {[%emt 0:00:15]} 5. b4 {[%emt 0:03:00]} a5 {[%emt 0:11:57]} 6. c3 {
[%emt 0:01:54]} Bd7 {[%emt 0:05:30]} 7. Nd2 {[%emt 0:06:22]} b6 {[%emt 0:00:20]
} 8. cxb6 {[%emt 0:01:15]} axb4 {[%emt 0:00:27]} 9. Bc7 {[%emt 0:07:18]} Qc8 {
[%emt 0:10:42]} 10. cxb4 {[%emt 0:06:35]} Ne4 {[%emt 0:04:18]} 11. Nxe4 {
[%emt 0:00:00]} dxe4 {[%emt 0:01:06]} 12. a3 {[%emt 0:00:00]} Rxa3 {[%emt 0:00:
00]} 13. Rb1 {[%emt 0:16:30]} Nc6 {[%emt 0:02:54]} 14. Bb5 {[%emt 0:02:50]}
Nxb4 {[%emt 0:01:04]} 15. b7 {[%emt 0:05:48]} 1-0